bitfinex/quotes_SOLUSD_20250924
["timestamp","ask_amount","ask_price","bid_price","bid_amount"]
[1758738172443,3.56201574,214.27,214.23,0.7]
[1758738173737,0.2,214.27,214.24,16.33681851]
[1758738173916,1e-08,214.27,214.25,0.7]
[1758738175031,1e-08,214.27,214.26,4.66722673]
[1758738175399,1e-08,214.27,214.26,5.36722673]
[1758738176331,3.36201574,214.32,214.26,43.73344296]
[1758738176528,3.36201574,214.33,214.27,4.06201574]
[1758738176771,3.36201574,214.33,214.28,4.06201574]
[1758738176914,3.36201574,214.33,214.3,16.33224451]
[1758738177114,0.2,214.34,214.31,0.7]
[1758738177905,1e-08,214.34,214.31,0.7]
[1758738178314,1e-08,214.34,214.31,18.09218059]
[1758738178606,1e-08,214.34,214.31,14.73016485]
[1758738178831,1e-08,214.34,214.31,14.03016485]
[1758738179017,1e-08,214.34,214.33,4.66570242]
[1758738179429,1e-08,214.34,214.33,5.36570242]
[1758738181113,1e-08,214.36,214.33,17.02995847]
[1758738181324,1e-08,214.36,214.34,0.71]
[1758738183039,0.2,214.39,214.35,19.69045053]
[1758738183333,3.36201574,214.37,214.35,16.32843479]
[1758738183539,3.36201574,214.36,214.35,16.32843479]
[1758738185247,3.36201574,214.36,214.35,11.66316771]
[1758738186823,3.36201574,214.36,214.35,12.37316771]
[1758738188135,3.36201574,214.37,214.35,17.03843479]
[1758738188446,3.36201574,214.37,214.36,0.71]
[1758738188747,3.56201574,214.39,214.36,0.71]
[1758738188925,3.56201574,214.39,214.37,0.71]
[1758738190245,3.36201574,214.38,214.37,0.71]
[1758738190559,3.36201574,214.38,214.37,5.37483183]
[1758738190728,0.2,214.39,214.37,5.37483183]
[1758738190935,3.56201574,214.39,214.37,4.66483183]
[1758738191256,3.36201574,214.38,214.37,4.66483183]
[1758738191930,2.86201574,214.38,214.37,4.66483183]
[1758738192134,3.56201574,214.39,214.37,5.37483183]
[1758738193247,3.56201574,214.39,214.35,11.66316771]
[1758738193546,3.36201574,214.38,214.36,0.71]
[1758738193725,3.36201574,214.37,214.35,11.66316771]
[1758738194051,3.36201574,214.37,214.36,0.71]
[1758738194635,3.36201574,214.37,214.35,11.66316771]
[1758738195041,3.36201574,214.36,214.35,11.66316771]
[1758738195243,3.36201574,214.37,214.35,17.03843479]
[1758738196054,3.36201574,214.37,214.36,0.71]
[1758738196551,3.36201574,214.37,214.36,5.37504944]
[1758738197067,3.36201574,214.38,214.36,5.37504944]
[1758738197471,3.36201574,214.37,214.36,17.03767306]
[1758738198670,3.36201574,214.37,214.36,11.66262362]
[1758738198880,3.36201574,214.37,214.36,12.37262362]
[1758738199975,3.56201574,214.39,214.36,12.37262362]
[1758738200169,0.2,214.39,214.37,0.71]
[1758738200370,3.56201574,214.39,214.37,0.71]
[1758738200874,3.56201574,214.39,214.36,11.66262362]
[1758738201052,3.56201574,214.39,214.38,0.71]
[1758738201785,0.2,214.39,214.38,5.37461423]
[1758738201955,3.56201574,214.39,214.38,5.37461423]
[1758738202362,0.2,214.39,214.38,5.37461423]
[1758738202576,3.56201574,214.39,214.38,5.37461423]
[1758738203687,3.56201574,214.39,214.38,4.66461423]
[1758738205780,3.56201574,214.39,214.37,4.66483183]
[1758738205981,3.36201574,214.38,214.37,4.66483183]
[1758738206182,3.36201574,214.38,214.37,5.37483183]
[1758738207471,39.58201574,214.38,214.36,11.66262362]
[1758738207659,3.84201574,214.37,214.36,11.66262362]
[1758738208057,3.36201574,214.37,214.36,11.66262362]
[1758738210787,36.22,214.38,214.36,12.37262362]
[1758738210956,0.2,214.39,214.36,12.37262362]
[1758738210957,0.2,214.39,214.37,0.71]
[1758738211156,3.56201574,214.39,214.37,0.71]
[1758738211581,3.56201574,214.39,214.38,0.71]
[1758738212054,0.2,214.39,214.38,5.37461423]
[1758738212581,3.56201574,214.39,214.38,5.37461423]
[1758738214375,0.2,214.39,214.38,5.37461423]
[1758738216579,1e-08,214.39,214.38,5.37461423]
[1758738226588,1e-08,214.39,214.38,8.73662997]
[1758738228082,1e-08,214.39,214.38,5.37461423]
[1758738231291,1e-08,214.39,214.38,44.91662997]
[1758738231465,1e-08,214.39,214.38,58.51222398]
[1758738231986,1e-08,214.44,214.39,13.59559401]
[1758738232193,1e-08,214.44,214.42,3.36201574]
[1758738232400,1e-08,214.44,214.42,39.54201574]
[1758738232576,1e-08,214.44,214.42,39.02620998]
[1758738232764,1e-08,214.44,214.43,4.66352655]
[1758738234105,2.14620999,214.44,214.43,4.66352655]
[1758738234877,2.14620999,214.44,214.41,11.65967806]
[1758738235782,2.14620998,214.43,214.41,11.65967806]
[1758738236303,1e-08,214.44,214.41,11.65967806]
[1758738236479,2.14620999,214.44,214.41,11.65967806]
[1758738236869,1e-08,214.44,214.41,11.65967806]
[1758738237102,2.14620999,214.44,214.41,11.65967806]
[1758738240108,2.14620998,214.43,214.41,11.65967806]
[1758738241088,1e-08,214.44,214.41,11.65967806]
[1758738241300,2.14620998,214.43,214.41,11.65967806]
[1758738241510,2.14620999,214.44,214.41,11.65967806]
[1758738242391,1e-08,214.44,214.41,12.33967806]
[1758738242597,1e-08,214.44,214.42,0.68]
[1758738243308,1e-08,214.44,214.41,11.65967806]
[1758738244191,1e-08,214.44,214.41,12.33967806]
[1758738245317,2.14620999,214.44,214.41,12.33967806]
[1758738245509,2.14620999,214.44,214.41,11.65967806]
[1758738245709,1e-08,214.44,214.41,12.33967806]
[1758738246018,2.14620999,214.44,214.41,17.00363962]
[1758738246714,2.14620999,214.44,214.42,0.68]
[1758738247101,2.14620999,214.44,214.43,4.66352655]
[1758738247624,1e-08,214.44,214.43,4.66352655]
[1758738247788,2.14620999,214.44,214.43,4.66352655]
[1758738249993,2.14620999,214.44,214.42,4.66374405]
[1758738250192,2.14620999,214.44,214.42,5.34374405]
[1758738250697,1e-08,214.44,214.43,0.68]
[1758738251408,1e-08,214.44,214.43,2.82620998]
[1758738252004,1e-08,214.44,214.43,7.48973653]
[1758738252519,0.2,214.46,214.43,19.14855292]
[1758738252520,1e-08,214.46,214.43,19.14855292]
[1758738252707,1e-08,214.46,214.44,0.68]
[1758738254521,1e-08,214.46,214.45,4.66309162]
[1758738254940,1e-08,214.46,214.45,5.34309162]
[1758738256904,1e-08,214.46,214.45,7.4893016]
[1758738257305,1e-08,214.46,214.45,21.08489561]
[1758738257608,1e-08,214.49,214.45,32.74262468]
[1758738257803,1e-08,214.49,214.46,0.68]
[1758738259034,1e-08,214.49,214.47,4.66265678]
[1758738259529,1e-08,214.49,214.48,0.68]
[1758738260105,1e-08,214.49,214.48,2.82620998]
[1758738260337,1e-08,214.49,214.48,0.68]
[1758738260818,1e-08,214.49,214.48,5.34243938]
[1758738261453,1e-08,214.49,214.48,4.66243938]
[1758738262207,1e-08,214.49,214.48,5.32243938]
[1758738264732,2.14620999,214.49,214.48,5.32243938]
[1758738266733,1e-08,214.49,214.46,16.98005967]
[1758738266926,2.14620998,214.48,214.46,16.98005967]
[1758738267123,2.14620998,214.48,214.46,16.32005967]
[1758738267323,2.14620998,214.48,214.47,0.66]
[1758738267528,2.14620998,214.48,214.46,16.98005967]
[1758738267733,1e-08,214.49,214.47,0.66]
[1758738267923,1e-08,214.49,214.48,4.66243938]
[1758738269018,2.14620999,214.49,214.48,4.66243938]
[1758738270815,1e-08,214.49,214.48,0.66]
[1758738272939,1e-08,214.49,214.48,5.32243938]
[1758738276259,2.14620999,214.49,214.48,5.32243938]
[1758738279860,2.14620999,214.49,214.48,4.66243938]
[1758738280161,2.14620999,214.49,214.48,5.32243938]
[1758738283966,1e-08,214.49,214.46,12.31718548]
[1758738284155,2.14620999,214.49,214.46,11.65718548]
[1758738284350,2.14620999,214.49,214.47,0.66]
[1758738284754,2.14620999,214.49,214.48,4.66243938]
[1758738285558,2.62620999,214.49,214.48,4.66243938]
[1758738285761,2.62620999,214.49,214.43,11.65838651]
[1758738285933,2.14620998,214.44,214.43,4.66352655]
[1758738286256,2.14620998,214.45,214.43,16.98234294]
[1758738286558,2.14620998,214.45,214.44,0.66]
[1758738287053,2.14620998,214.45,214.44,5.32330908]
[1758738287235,2.14620998,214.45,214.44,4.66330908]
[1758738288058,0.48,214.47,214.44,4.66330908]
[1758738288234,2.14620998,214.45,214.44,4.66330908]
[1758738288956,2.14620998,214.45,214.43,16.32234294]
[1758738289156,2.14620998,214.44,214.43,16.32234294]
[1758738289373,2.14620998,214.44,214.43,16.98234294]
[1758738292736,3.35463094,214.44,214.43,16.98234294]
[1758738292937,3.83463094,214.44,214.43,4.66352655]
[1758738293245,3.83463094,214.44,214.37,16.32691141]
[1758738293448,0.48,214.44,214.39,0.72]
[1758738293651,0.48,214.44,214.4,0.72]
[1758738294054,26.0,214.47,214.4,0.72]
[1758738294237,0.48,214.46,214.4,0.72]
[1758738294432,0.48,214.45,214.4,0.72]
[1758738294663,26.0,214.47,214.37,39.65107057]
[1758738294875,3.35463094,214.43,214.38,13.59559401]
[1758738295243,3.35463094,214.43,214.4,16.32462686]
[1758738295444,3.35463094,214.43,214.41,0.72]
[1758738295750,3.35463094,214.43,214.42,0.72]
[1758738297453,3.35463094,214.43,214.42,5.38374405]
[1758738297855,3.35463094,214.43,214.42,17.04310418]
[1758738299463,3.35463094,214.43,214.42,16.32310418]
[1758738299661,3.35463094,214.43,214.42,17.04310418]
[1758738300676,3.35463094,214.43,214.39,16.32538831]
[1758738300850,0.48,214.46,214.42,0.67]
[1758738301052,3.35463094,214.43,214.42,0.67]
[1758738302779,3.35463094,214.43,214.42,4.66374405]
[1758738304670,0.48,214.45,214.42,4.66374405]
[1758738304868,3.35463094,214.43,214.42,4.66374405]
[1758738305069,3.35463094,214.43,214.42,16.32310418]
[1758738306375,26.0,214.47,214.42,16.99310418]
[1758738306583,3.35463094,214.43,214.42,16.32310418]
[1758738306781,3.35463094,214.43,214.42,16.99310418]
[1758738307078,3.35463094,214.43,214.42,16.32310418]
[1758738307589,3.35463094,214.43,214.42,4.66374405]
[1758738307757,3.83463094,214.43,214.4,4.6641791]
[1758738307953,3.35463094,214.41,214.4,4.6641791]
[1758738308557,3.35463094,214.41,214.39,16.32489638]
[1758738308759,3.35463094,214.4,214.39,16.32489638]
[1758738309491,3.35463094,214.4,214.38,4.66461423]
[1758738309693,3.35463094,214.39,214.38,4.66461423]
[1758738310062,3.83463094,214.39,214.38,4.66461423]
[1758738310262,3.83463094,214.39,214.37,4.66479468]
[1758738310465,3.83463094,214.38,214.37,4.66479468]
[1758738311163,3.35463094,214.38,214.37,4.66479468]
[1758738311567,3.35463094,214.38,214.35,11.66308585]
[1758738311568,3.83463094,214.38,214.35,16.32835293]
[1758738311899,3.35463094,214.36,214.35,16.32835293]
[1758738318462,3.35463094,214.36,214.35,16.99835293]
[1758738318895,3.35463094,214.36,214.35,16.32835293]
[1758738319566,3.35463094,214.36,214.33,4.66570242]
[1758738319773,3.35463094,214.34,214.33,4.66570242]
[1758738320371,3.35463094,214.34,214.33,5.33570242]
[1758738321389,3.35463094,214.34,214.33,4.66570242]
[1758738323999,3.35463094,214.34,214.29,23.33270672]
[1758738324203,3.35463094,214.34,214.32,0.65]
[1758738324570,3.35463094,214.34,214.33,0.65]
[1758738324775,3.35463094,214.34,214.3,0.65]
[1758738325001,3.35463094,214.32,214.3,0.65]
[1758738326307,3.35463094,214.32,214.31,4.66613783]
[1758738326690,3.35463094,214.32,214.31,5.31613783]
[1758738329672,3.35463094,214.32,214.31,4.66613783]
[1758738329997,3.83463094,214.32,214.31,4.66613783]
[1758738330186,3.35463094,214.32,214.31,4.66613783]
[1758738331277,3.35463094,214.32,214.31,5.31613783]
[1758738331481,3.35463094,214.32,214.31,16.98148242]
[1758738334712,26.0,214.35,214.31,16.98148242]
[1758738335010,3.35463094,214.32,214.31,16.33148242]
[1758738335384,3.35463094,214.32,214.31,16.98148242]
[1758738336719,26.0,214.35,214.31,16.98148242]
[1758738336936,3.35463094,214.34,214.32,0.65]
[1758738337114,3.35463094,214.33,214.31,39.6621716]
[1758738337413,3.35463094,214.32,214.31,16.33148242]
[1758738339821,3.35463094,214.32,214.31,16.98148242]
[1758738342420,3.35463094,214.32,214.31,16.33148242]
[1758738346723,3.35463094,214.32,214.31,11.66534459]
[1758738348431,3.35463094,214.32,214.31,16.33148242]
[1758738349104,3.35463094,214.32,214.31,4.66613783]
[1758738350133,29.83463094,214.32,214.29,4.66640655]
[1758738350298,29.83463094,214.32,214.27,4.66700891]
[1758738350299,3.35463094,214.3,214.27,4.66700891]
[1758738350505,3.35463094,214.28,214.27,4.66700891]
[1758738351017,3.35463094,214.28,214.27,5.37700891]
[1758738351329,3.35463094,214.28,214.27,17.04453119]
[1758738352138,3.35463094,214.28,214.27,16.33453119]
[1758738352308,3.35463094,214.28,214.27,4.66700891]
[1758738352635,29.83463094,214.28,214.27,4.66700891]
[1758738353332,29.35463094,214.28,214.27,4.66700891]
[1758738353921,26.0,214.27,214.26,4.76721092]
[1758738354129,40.03679251,214.27,214.26,4.76721092]
[1758738354432,39.55679251,214.27,214.26,4.76721092]
[1758738354632,38.35332758,214.27,214.26,4.76721092]
[1758738354821,38.83332758,214.27,214.26,0.1]
[1758738356221,38.35332758,214.27,214.26,4.76722673]
[1758738357515,2.29332758,214.27,214.26,4.76722673]
[1758738357719,38.35332758,214.27,214.26,4.76722673]
[1758738358732,2.15116601,214.27,214.26,17.14529356]
[1758738360218,2.15116601,214.27,214.26,4.76722673]
[1758738360828,2.29332758,214.27,214.26,4.76722673]
[1758738361915,58.06367605,214.27,214.26,4.76722673]
[1758738363947,58.06367605,214.27,214.26,5.47722673]
[1758738364736,2.15116601,214.27,214.26,5.47722673]
[1758738364943,38.21116601,214.27,214.26,5.47722673]
[1758738365132,36.06,214.27,214.26,5.47722673]
[1758738365338,26.0,214.3,214.26,17.14529356]
[1758738365640,26.0,214.3,214.27,0.71]
[1758738365641,2.15116601,214.29,214.27,0.71]
[1758738365845,2.15116601,214.28,214.27,0.71]
[1758738366223,2.15116601,214.28,214.27,5.37700891]
[1758738372451,38.21116601,214.28,214.27,5.37700891]
[1758738374850,36.06,214.28,214.27,5.37700891]
[1758738375047,38.21116601,214.28,214.27,5.37700891]
[1758738377128,36.06,214.28,214.27,5.37700891]
[1758738377441,38.21116601,214.28,214.27,5.37700891]
[1758738383379,38.21116601,214.28,214.27,5.38700891]
[1758738384348,36.06,214.28,214.27,5.38700891]
[1758738384678,38.21116601,214.28,214.27,5.38700891]
[1758738385376,36.06,214.28,214.27,5.38700891]
[1758738385581,38.21116601,214.28,214.27,5.38700891]
[1758738386176,2.15116601,214.28,214.27,5.38700891]
[1758738386355,36.04,214.28,214.27,5.38700891]
[1758738386543,38.19116601,214.28,214.27,5.38700891]
[1758738387365,2.15116601,214.28,214.27,5.38700891]
[1758738390477,55.77034847,214.29,214.27,5.38700891]
[1758738390682,2.15116601,214.31,214.28,0.72]
[1758738390972,26.0,214.34,214.28,0.72]
[1758738391179,2.15116601,214.33,214.28,0.72]
[1758738391544,2.15116601,214.33,214.29,16.33300666]
[1758738391748,2.15116601,214.33,214.3,0.72]
[1758738392665,36.04,214.35,214.3,0.72]
[1758738392859,2.15116601,214.33,214.3,0.72]
[1758738393764,2.15116601,214.33,214.31,4.66613783]
[1758738394164,2.15116601,214.33,214.32,0.72]
[1758738394759,2.15116601,214.33,214.32,5.38592011]
[1758738397258,2.63116601,214.33,214.32,4.66592011]
[1758738397659,2.15116601,214.33,214.32,4.66592011]
[1758738398383,2.15116601,214.33,214.32,5.38592011]
[1758738398584,2.15116601,214.33,214.32,17.0507204]
[1758738399287,2.15116601,214.33,214.32,16.3307204]
[1758738399466,2.15116601,214.33,214.32,17.0507204]
[1758738408068,28.15116601,214.33,214.32,16.3307204]
[1758738408784,28.15116601,214.33,214.32,17.0507204]
[1758738410797,2.15116601,214.33,214.32,17.0507204]
[1758738414669,3.35853342,214.33,214.32,17.0507204]
[1758738420294,54.82660184,214.37,214.32,40.38032099]
[1758738420500,3.35853342,214.36,214.33,0.72]
[1758738420685,3.35853342,214.35,214.33,0.72]
[1758738421290,3.35853342,214.34,214.32,39.66032099]
[1758738421909,3.35853342,214.34,214.33,0.72]
[1758738422207,3.35853342,214.34,214.33,5.38570242]
[1758738422906,3.35853342,214.35,214.33,5.38570242]
[1758738423112,3.35853342,214.35,214.34,0.72]
[1758738423999,0.48,214.43,214.34,0.72]
[1758738424315,3.35853342,214.4,214.35,16.32843479]
[1758738424535,29.35853342,214.41,214.36,0.72]
[1758738424681,26.0,214.41,214.36,4.07853342]
[1758738424880,26.0,214.41,214.37,0.72]
[1758738425081,29.35853342,214.42,214.37,0.72]
[1758738425301,3.35853342,214.41,214.37,0.72]
[1758738425498,0.48,214.48,214.37,4.07853342]
[1758738425687,3.35853342,214.44,214.38,4.07853342]
[1758738425888,3.35853342,214.44,214.39,0.72]
[1758738426290,3.35853342,214.44,214.4,16.32462686]
[1758738426486,3.35853342,214.44,214.41,0.72]
[1758738427294,26.0,214.46,214.42,16.32310418]
[1758738427495,29.35853342,214.46,214.43,0.72]
[1758738428201,3.35853342,214.46,214.43,0.72]
[1758738428899,29.35853342,214.46,214.44,0.72]
[1758738429416,29.35853342,214.46,214.45,4.66309162]
[1758738430996,26.0,214.46,214.45,17.04082069]
[1758738431203,3.35853342,214.48,214.45,17.04082069]
[1758738431613,26.0,214.47,214.46,0.72]
[1758738431909,26.0,214.47,214.45,16.32082069]
[1758738432095,29.35853342,214.47,214.45,16.32082069]
[1758738432613,29.35853342,214.47,214.45,17.04082069]
[1758738433216,26.0,214.47,214.46,0.72]
[1758738433911,26.0,214.47,214.45,16.32082069]
[1758738434118,26.0,214.47,214.45,17.04082069]
[1758738436608,3.35853342,214.47,214.45,17.04082069]
[1758738438606,26.00000001,214.49,214.46,0.72]
[1758738438814,29.35853343,214.49,214.46,0.72]
[1758738439803,29.35853343,214.49,214.47,4.66265678]
[1758738440124,1e-08,214.49,214.48,0.72]
[1758738442046,1e-08,214.49,214.48,5.38243938]
[1758738443924,1e-08,214.49,214.48,4.66243938]
[1758738444708,1e-08,214.49,214.48,5.32243938]
[1758738445233,1e-08,214.49,214.48,4.66243938]
[1758738445910,3.35853343,214.49,214.48,4.66243938]
[1758738446119,3.83853343,214.49,214.48,4.66243938]
[1758738446726,3.35853343,214.49,214.48,4.66243938]
[1758738447346,1e-08,214.49,214.48,5.32243938]
[1758738451948,3.35853343,214.49,214.48,4.66243938]
[1758738452840,3.35853343,214.49,214.47,4.66265678]
[1758738453028,3.35853343,214.49,214.47,5.32265678]
[1758738453442,1e-08,214.49,214.47,4.66265678]
[1758738454033,1e-08,214.49,214.48,0.66]
[1758738457049,1e-08,214.49,214.48,5.32243938]
[1758738461855,1e-08,214.49,214.45,16.32082069]
[1758738461856,3.83853343,214.49,214.45,16.32082069]
[1758738462081,3.35853342,214.48,214.45,16.98082069]
[1758738463130,3.35853342,214.47,214.46,0.66]
[1758738463949,3.35853342,214.47,214.46,5.32287419]
[1758738466162,3.35853342,214.47,214.45,0.66]
[1758738466351,3.35853342,214.46,214.45,0.66]
[1758738467346,3.35853342,214.46,214.45,5.32309162]
[1758738469353,1e-08,214.49,214.45,16.98082069]
[1758738469554,3.35853342,214.46,214.45,16.32082069]
[1758738470158,3.35853342,214.46,214.45,16.98082069]
[1758738472646,3.35853342,214.46,214.45,16.32082069]
[1758738472846,3.35853342,214.46,214.45,17.04082069]
[1758738476781,2.14647333,214.46,214.45,17.04082069]
[1758738477377,1e-08,214.49,214.45,17.04082069]
[1758738477578,2.14647333,214.46,214.45,17.04082069]
[1758738479266,2.14647333,214.46,214.45,16.32082069]
[1758738480262,2.14647333,214.46,214.45,0.65]
[1758738481458,2.14647333,214.46,214.43,23.31681301]
[1758738481658,2.14647333,214.45,214.44,0.65]
[1758738482173,2.14647333,214.45,214.44,5.31330908]
[1758738482557,2.14647333,214.46,214.44,16.97158179]
[1758738482771,2.14647333,214.45,214.44,16.32158179]
[1758738484179,2.14647333,214.45,214.44,11.65827271]
[1758738485181,3.1092701,214.48,214.44,12.30827271]
[1758738485482,2.14647333,214.47,214.45,0.65]
[1758738486263,26.0,214.48,214.46,4.66287419]
[1758738486264,28.14647333,214.48,214.46,4.66287419]
[1758738486661,28.14647333,214.48,214.47,0.65]
[1758738487785,26.0,214.48,214.47,5.31265678]
[1758738488980,1e-08,214.49,214.47,5.31265678]
[1758738489190,1e-08,214.49,214.48,0.65]
[1758738489759,1e-08,214.49,214.48,5.31243938]
[1758738492769,1e-08,214.49,214.48,18.90803339]
[1758738493073,2.14647333,214.54,214.49,13.59559401]
[1758738493274,2.14647333,214.54,214.5,0.65]
[1758738493474,2.14647333,214.54,214.51,0.65]
[1758738493673,2.14647333,214.54,214.52,0.65]
[1758738494596,2.14647333,214.54,214.53,4.66135272]
[1758738494991,2.34647333,214.55,214.53,4.66135272]
[1758738497583,0.2,214.55,214.53,5.31135272]
[1758738497787,0.2,214.55,214.53,4.66135272]
[1758738499184,0.2,214.55,214.54,0.65]
[1758738499709,2.34647333,214.55,214.52,16.96549505]
[1758738499906,2.34647333,214.57,214.53,0.65]
[1758738500205,0.2,214.57,214.53,0.65]
[1758738500799,2.34647333,214.57,214.54,0.69]
[1758738501198,2.34647333,214.57,214.55,4.6609182]
[1758738501199,2.14647333,214.56,214.55,4.6609182]
[1758738502916,2.14647333,214.56,214.52,34.96177512]
[1758738503118,2.14647333,214.54,214.52,34.96177512]
[1758738506115,2.14647333,214.54,214.52,35.65177512]
[1758738507414,2.14647333,214.54,214.52,40.31334513]
[1758738508717,0.2,214.57,214.53,0.69]
[1758738508921,2.14647333,214.55,214.53,0.69]
[1758738509629,2.14647333,214.55,214.52,34.96177512]
[1758738509921,2.14647333,214.55,214.52,35.65177512]
[1758738510321,0.68,214.57,214.52,34.96177512]
[1758738510525,2.14647333,214.55,214.53,0.69]
[1758738510834,2.14647333,214.55,214.54,4.66113545]
[1758738511325,2.14647333,214.55,214.54,5.35113545]
[1758738513431,2.14647333,214.55,214.54,4.66113545]
[1758738513722,2.34647333,214.57,214.54,17.00397408]
[1758738513929,0.2,214.57,214.55,0.69]
[1758738514925,0.2,214.57,214.56,4.66070096]
[1758738515134,1e-08,214.57,214.56,5.35070096]
[1758738516423,2.14647334,214.57,214.56,4.66070096]
[1758738516816,1e-08,214.57,214.56,5.35070096]
[1758738518826,2.14647334,214.57,214.56,5.35070096]
[1758738519431,1e-08,214.57,214.56,4.66070096]
[1758738519728,1e-08,214.57,214.56,5.35070096]
[1758738523934,1e-08,214.59,214.56,17.00245338]
[1758738524134,1e-08,214.59,214.57,14.28559401]
[1758738524654,1e-08,214.59,214.58,0.69]
[1758738525521,2.14647334,214.59,214.58,0.69]
[1758738525722,1e-08,214.59,214.58,0.69]
[1758738526136,1e-08,214.59,214.58,5.35026656]
[1758738527855,2.14647334,214.59,214.58,4.66026656]
[1758738529126,1e-08,214.59,214.58,4.66026656]
[1758738529345,2.14647334,214.59,214.58,4.66026656]
[1758738530630,1e-08,214.59,214.58,5.35026656]
[1758738534560,1e-08,214.59,214.58,18.94586057]
[1758738534738,1e-08,214.59,214.58,21.0923339]
[1758738535748,1e-08,214.59,214.58,7.49673989]
[1758738536056,1e-08,214.59,214.58,43.37673989]
[1758738537027,1e-08,214.59,214.58,7.49673989]
[1758738537229,1e-08,214.59,214.58,43.37673989]
[1758738537651,1e-08,214.59,214.58,7.49673989]
[1758738537852,1e-08,214.59,214.58,6.80673989]
[1758738538154,1e-08,214.59,214.58,5.34026656]
[1758738538531,1e-08,214.59,214.58,4.66026656]
[1758738540657,3.34890877,214.59,214.58,4.66026656]
[1758738541748,3.34890877,214.59,214.57,4.66048375]
[1758738541948,3.34890876,214.58,214.57,4.66048375]
[1758738543557,3.34890876,214.58,214.57,5.36048375]
[1758738544159,1e-08,214.59,214.57,5.36048375]
[1758738544350,1e-08,214.59,214.57,4.66048375]
[1758738544549,3.34890877,214.59,214.58,0.7]
[1758738545740,1e-08,214.59,214.58,0.7]
[1758738546146,1e-08,214.59,214.57,5.36048375]
[1758738546960,1e-08,214.59,214.58,0.7]
[1758738548957,1e-08,214.59,214.58,5.36026656]
[1758738549345,1e-08,214.59,214.58,4.66026656]
[1758738549567,1e-08,214.59,214.58,41.22026656]
[1758738551663,3.34890877,214.59,214.58,41.22026656]
[1758738553661,1e-08,214.59,214.58,41.22026656]
[1758738561173,1e-08,214.59,214.58,4.66026656]
[1758738561373,1e-08,214.59,214.58,41.22026656]
[1758738561574,1e-08,214.59,214.58,40.52026656]
[1758738561783,1e-08,214.59,214.58,4.66026656]
[1758738562076,1e-08,214.59,214.58,41.22026656]
[1758738566979,1e-08,214.59,214.58,40.52026656]
[1758738567286,1e-08,214.59,214.58,41.22026656]
[1758738568481,1e-08,214.59,214.58,5.36026656]
[1758738568853,1e-08,214.59,214.58,41.22026656]
[1758738572768,1e-08,214.59,214.58,44.76917532]
[1758738574664,0.13692868,214.61,214.58,56.41984173]
[1758738574864,0.13692868,214.61,214.59,0.7]
[1758738575081,0.13692868,214.61,214.6,35.84]
[1758738575391,0.13692868,214.61,214.6,41.19983224]
[1758738577484,1e-08,214.61,214.6,41.19983224]
[1758738577676,1e-08,214.61,214.6,44.548741]
[1758738578465,1e-08,214.61,214.6,41.19983224]
[1758738579178,0.2,214.68,214.61,16.94450277]
[1758738579387,3.54890876,214.68,214.62,39.18890876]
[1758738579692,0.2,214.68,214.63,4.04890876]
[1758738579880,0.2,214.68,214.64,36.54]
[1758738580277,0.2,214.68,214.65,0.7]
[1758738580482,0.2,214.68,214.66,36.54]
[1758738581088,0.2,214.68,214.67,4.65831275]
[1758738582866,0.2,214.68,214.67,5.35831275]
[1758738585486,0.2,214.68,214.67,4.65831275]
[1758738585792,0.2,214.68,214.67,40.49831275]
[1758738585989,3.54890876,214.68,214.67,40.49831275]
[1758738586790,3.54890876,214.68,214.65,16.30538492]
[1758738586993,3.34890876,214.67,214.66,35.84]
[1758738587972,3.34890876,214.67,214.65,52.14538492]
[1758738588374,3.54890876,214.68,214.65,52.14538492]
[1758738588574,0.2,214.68,214.65,52.14538492]
[1758738588873,3.54890876,214.68,214.65,52.14538492]
[1758738589587,3.34890876,214.67,214.65,52.14538492]
[1758738591198,3.34890876,214.66,214.65,11.64663813]
[1758738591390,3.34890876,214.66,214.65,47.46663813]
[1758738592986,3.34890876,214.66,214.65,52.12538492]
[1758738594801,3.34890876,214.66,214.65,16.30538492]
[1758738596278,3.82890876,214.66,214.65,4.65874679]
[1758738597007,3.82890876,214.66,214.62,16.30747388]
[1758738597213,3.34890876,214.63,214.62,16.30747388]
[1758738598400,3.34890876,214.63,214.62,4.659398]
[1758738598596,28.62367965,214.63,214.62,4.659398]
[1758738598902,31.7308233,214.63,214.62,4.659398]
[1758738599200,3.10714365,214.63,214.59,12.35962977]
[1758738599395,0.48,214.65,214.59,12.35962977]
[1758738599396,2.14367965,214.61,214.59,12.35962977]